bitfinex-derivatives/quotes_BTCF0:USTF0_20241208
["timestamp","ask_amount","ask_price","bid_price","bid_amount"]
[1733679036659,0.0316,99934.0,99933.0,0.04813239]
[1733679038367,0.0386,99934.0,99933.0,0.04813239]
[1733679042362,0.083604,99934.0,99933.0,0.04813239]
[1733679043365,0.083604,99934.0,99933.0,0.045005]
[1733679044169,0.083604,99934.0,99933.0,0.0481324]
[1733679044378,0.083604,99934.0,99933.0,0.045005]
[1733679045064,0.083604,99934.0,99933.0,0.22434133]
[1733679045267,0.083604,99934.0,99933.0,0.23247257]
[1733679045572,0.083604,99934.0,99933.0,0.05313624]
[1733679046174,0.083604,99934.0,99933.0,0.23259796]
[1733679046375,0.083604,99934.0,99933.0,0.05313624]
[1733679046675,0.083604,99934.0,99933.0,0.05313621]
[1733679046883,0.0386,99934.0,99933.0,0.05313621]
[1733679050171,0.0386,99934.0,99933.0,0.04813239]
[1733679050367,0.0386,99934.0,99933.0,0.05313601]
[1733679050774,0.0386,99934.0,99933.0,0.04813239]
[1733679051567,0.0386,99934.0,99933.0,0.05838746]
[1733679052077,0.21811897,99934.0,99933.0,0.05838746]
[1733679053271,0.0386,99934.0,99933.0,0.05526007]
[1733679053570,0.0386,99934.0,99933.0,0.06339111]
[1733679053772,0.21863716,99934.0,99933.0,0.06339111]
[1733679053968,0.21863716,99934.0,99933.0,0.05838739]
[1733679054170,0.0386,99934.0,99933.0,0.06339107]
[1733679054771,0.0386,99934.0,99933.0,0.05838739]
[1733679055568,0.2186487,99934.0,99933.0,0.06339108]
[1733679056072,0.0386,99934.0,99933.0,0.06339108]
[1733679056671,0.0386,99934.0,99933.0,1.56339108]
[1733679057272,0.0386,99934.0,99933.0,1.66345762]
[1733679057476,0.0386,99934.0,99933.0,1.67596607]
[1733679057889,0.0386,99934.0,99933.0,1.855763]
[1733679058080,0.0386,99934.0,99933.0,1.69550733]
[1733679058081,0.08723753,99934.0,99933.0,1.69550733]
[1733679058882,0.08723753,99934.0,99933.0,1.69850733]
[1733679058883,0.08423753,99934.0,99933.0,1.69850733]
[1733679059385,0.08123753,99934.0,99933.0,1.69850733]
[1733679059582,0.08123753,99934.0,99933.0,2.05930733]
[1733679060178,0.077604,99934.0,99933.0,0.44898572]
[1733679060378,0.077604,99934.0,99933.0,0.36693601]
[1733679060584,0.438404,99934.0,99930.0,0.2397624]
[1733679060877,0.438404,99934.0,99929.0,0.045006]
[1733679060878,0.045006,99930.0,99929.0,0.2847684]
[1733679061078,0.045006,99930.0,99929.0,0.045006]
[1733679062077,0.046006,99930.0,99929.0,0.045006]
[1733679062486,0.001,99930.0,99925.0,0.28474983]
[1733679062786,0.045007,99929.0,99928.0,0.17978906]
[1733679062981,0.003,99930.0,99928.0,0.17978906]
[1733679063187,0.045007,99929.0,99928.0,0.17978906]
[1733679063387,0.045008,99927.0,99926.0,0.045008]
[1733679064282,0.045008,99927.0,99926.0,1.545008]
[1733679064481,0.045008,99927.0,99926.0,1.5]
[1733679065281,0.046008,99927.0,99926.0,1.5]
[1733679065479,0.046008,99927.0,99926.0,1.545008]
[1733679065789,0.001,99927.0,99926.0,1.545008]
[1733679065986,0.09095532,99927.0,99926.0,1.545008]
[1733679066284,0.003,99927.0,99926.0,1.905808]
[1733679066488,0.09295414,99927.0,99926.0,1.905808]
[1733679066791,0.003,99927.0,99926.0,2.03802531]
[1733679066999,0.003,99927.0,99926.0,2.69862474]
[1733679067178,0.01,99931.0,99930.0,0.045006]
[1733679067487,0.08995414,99934.0,99933.0,0.045005]
[1733679067488,0.13495914,99934.0,99933.0,0.045005]
[1733679067690,0.13495914,99934.0,99933.0,0.28443371]
[1733679067982,0.13495914,99934.0,99933.0,1.78443371]
[1733679068376,0.13495914,99934.0,99933.0,1.545005]
[1733679070484,0.045005,99934.0,99933.0,1.79143744]
[1733679071079,0.045005,99934.0,99933.0,1.55200873]
[1733679071281,0.045005,99934.0,99933.0,1.50500373]
[1733679071484,0.405805,99934.0,99933.0,1.50600373]
[1733679071680,0.405805,99934.0,99933.0,0.001]
[1733679072090,0.55580816,99934.0,99933.0,0.001]
[1733679072493,0.045007,99929.0,99928.0,1.50068]
[1733679072690,0.045007,99929.0,99928.0,1.5]
[1733679072988,0.045007,99929.0,99928.0,1.72448158]
[1733679073184,0.045007,99929.0,99928.0,1.54813437]
[1733679073391,0.08993901,99932.0,99931.0,0.045006]
[1733679073589,0.13494431,99933.0,99932.0,0.045005]
[1733679073790,0.13494431,99933.0,99932.0,0.28735627]
[1733679073986,0.001,99934.0,99933.0,0.045005]
[1733679073987,0.09093931,99934.0,99933.0,0.045005]
[1733679074190,0.09093874,99934.0,99933.0,0.04813237]
[1733679074386,0.09093686,99934.0,99933.0,0.04813237]
[1733679074588,0.001,99934.0,99933.0,0.04813237]
[1733679074786,0.08993463,99934.0,99933.0,0.14819891]
[1733679074986,0.08993463,99935.0,99934.0,0.045004]
[1733679075189,0.04863889,99935.0,99934.0,0.04813137]
[1733679075887,0.04863889,99935.0,99934.0,0.04813117]
[1733679076290,0.04863889,99935.0,99934.0,1.54813117]
[1733679076291,0.2250527,99935.0,99934.0,1.54813117]
[1733679076489,0.09364289,99935.0,99934.0,0.00312717]
[1733679076687,0.045004,99934.0,99933.0,0.001]
[1733679076905,0.19713545,99934.0,99933.0,0.001]
[1733679077091,0.045009,99925.0,99924.0,1.545009]
[1733679077391,0.045009,99925.0,99924.0,1.5]
[1733679077694,0.19630795,99925.0,99924.0,1.5]
[1733679078386,0.19630795,99925.0,99924.0,1.501]
[1733679078585,0.19630795,99925.0,99924.0,1.546009]
[1733679078789,0.19630795,99925.0,99924.0,1.501]
[1733679079092,0.19609595,99925.0,99924.0,1.501]
[1733679079602,0.04864823,99925.0,99924.0,1.54913667]
[1733679079896,0.04964823,99925.0,99924.0,1.56164683]
[1733679080095,0.04964823,99925.0,99924.0,1.58624302]
[1733679080501,0.04864823,99925.0,99924.0,1.58624302]
[1733679081098,0.04964823,99925.0,99924.0,1.58624302]
[1733679081596,0.04864823,99925.0,99924.0,1.58524302]
[1733679081796,0.001,99925.0,99924.0,1.58624302]
[1733679082894,0.001,99925.0,99924.0,1.58624289]
[1733679083800,0.046009,99925.0,99924.0,1.58624289]
[1733679084098,0.046009,99925.0,99924.0,0.05414068]
[1733679086809,0.045009,99925.0,99924.0,0.05414068]
[1733679087218,0.045009,99925.0,99924.0,0.04913667]
[1733679087421,0.045009,99925.0,99924.0,0.04813667]
[1733679087714,0.08991583,99925.0,99924.0,0.04913667]
[1733679088013,0.13492283,99929.0,99927.0,0.045008]
[1733679088208,0.13492283,99929.0,99924.0,0.05314082]
[1733679088209,0.08991583,99929.0,99928.0,0.04813467]
[1733679088410,0.09991583,99930.0,99929.0,0.045007]
[1733679088606,0.08991583,99930.0,99929.0,0.04813467]
[1733679088825,0.08991583,99930.0,99929.0,1.54813467]
[1733679089216,0.045005,99933.0,99929.0,1.54813467]
[1733679089520,0.045005,99933.0,99932.0,0.045005]
[1733679089718,0.11988761,99934.0,99933.0,0.045005]
[1733679090020,0.045004,99934.0,99933.0,0.22762472]
[1733679090215,0.09364777,99934.0,99933.0,0.04813267]
[1733679090818,0.09664777,99934.0,99933.0,0.04813267]
[1733679091115,0.003,99934.0,99933.0,0.05313633]
[1733679091331,0.01,99935.0,99933.0,0.12070679]
[1733679091616,0.01,99935.0,99934.0,0.06564425]
[1733679091816,0.15987599,99940.0,99939.0,0.045002]
[1733679092119,0.14987599,99940.0,99939.0,0.05313333]
[1733679092325,0.14987599,99940.0,99939.0,0.04812967]
[1733679093320,0.045001,99942.0,99941.0,0.045001]
[1733679093514,0.22846565,99944.0,99941.0,0.00312767]
[1733679093716,0.17982702,99944.0,99943.0,0.045]
[1733679093921,0.04863925,99944.0,99943.0,0.045]
[1733679094123,0.17980178,99944.0,99943.0,0.045]
[1733679094316,0.17980178,99944.0,99943.0,0.04812719]
[1733679094516,0.04863925,99944.0,99943.0,0.04812719]
[1733679095021,0.04963925,99944.0,99943.0,0.04812719]
[1733679095413,0.04963925,99944.0,99943.0,0.05313058]
[1733679095617,0.05063925,99944.0,99943.0,0.05313058]
[1733679097119,0.002,99944.0,99943.0,0.05313058]
[1733679100432,0.002,99944.0,99943.0,0.0481271]
[1733679101634,0.09186205,99944.0,99943.0,0.0481271]
[1733679102326,0.09186205,99944.0,99943.0,0.045]
[1733679105231,0.05063741,99944.0,99943.0,0.045]
[1733679107531,0.05063741,99944.0,99938.0,0.045002]
[1733679107731,0.15176028,99943.0,99938.0,0.045002]
[1733679108029,0.045004,99939.0,99938.0,0.045002]
[1733679109126,0.19665967,99939.0,99938.0,0.045002]
[1733679109923,0.19665967,99939.0,99938.0,0.04812938]
[1733679110539,0.19665967,99939.0,99938.0,0.04912938]
[1733679110733,0.19765967,99939.0,99938.0,0.04912938]
[1733679111035,0.19765967,99939.0,99938.0,0.04812938]
[1733679111532,0.09464422,99939.0,99938.0,0.00312738]
[1733679111733,0.19711721,99939.0,99938.0,0.00312738]
[1733679112036,0.19711721,99939.0,99923.0,0.3608]
[1733679112037,0.045009,99925.0,99924.0,0.045009]
[1733679112340,0.045009,99925.0,99924.0,0.00500425]
[1733679112632,0.045011,99920.0,99919.0,0.22450305]
[1733679112835,0.045011,99920.0,99919.0,0.22950763]
[1733679113729,0.045011,99920.0,99919.0,0.00500458]
[1733679113931,0.045012,99918.0,99917.0,1.68013205]
[1733679114228,0.045012,99918.0,99917.0,1.67949205]
[1733679114741,0.045012,99918.0,99917.0,1.5]
[1733679115633,0.045012,99918.0,99917.0,1.501]
[1733679117932,0.045012,99918.0,99917.0,1.50600463]
[1733679118339,0.045012,99918.0,99917.0,1.546012]
[1733679119435,0.40227154,99924.0,99917.0,1.501]
[1733679119638,0.01,99925.0,99917.0,0.001]
[1733679119835,0.01,99925.0,99924.0,0.045009]
[1733679120139,0.01014747,99926.0,99924.0,0.045009]
[1733679120140,0.01014747,99926.0,99925.0,0.045009]
[1733679120344,0.055006,99930.0,99929.0,0.045007]
[1733679120637,0.045006,99930.0,99929.0,0.045007]
[1733679121638,0.045006,99930.0,99924.0,0.0006]
[1733679121639,0.045009,99925.0,99924.0,0.0006]
[1733679121841,0.045012,99918.0,99917.0,0.18033347]
[1733679122037,0.045012,99918.0,99917.0,0.001]
[1733679122537,0.045013,99916.0,99915.0,1.5006]
[1733679122840,0.045013,99916.0,99915.0,1.5]
[1733679123933,0.045013,99916.0,99915.0,1.50312802]
[1733679125139,0.045013,99916.0,99915.0,1.501]
[1733679127338,0.05509675,99916.0,99915.0,1.501]
[1733679129140,0.045013,99916.0,99915.0,1.501]
[1733679133140,0.045013,99916.0,99915.0,1.5041282]
[1733679134444,0.045013,99916.0,99915.0,1.501]
[1733679134748,0.045013,99916.0,99915.0,1.5041282]
[1733679137046,0.045013,99916.0,99915.0,1.51424172]
[1733679137447,0.1146171,99928.0,99922.0,0.04501]
[1733679137749,0.01,99928.0,99922.0,0.02064411]
[1733679138051,0.01,99928.0,99927.0,1.545008]
[1733679138248,0.01,99933.0,99932.0,0.045005]
[1733679138545,0.01,99938.0,99932.0,0.00813333]
[1733679138847,0.01,99938.0,99927.0,1.5006]
[1733679138848,0.045004,99936.0,99934.0,0.17947018]
[1733679139051,0.045004,99934.0,99932.0,0.17947018]
[1733679139350,0.405804,99934.0,99933.0,0.18760152]
[1733679139551,0.405804,99934.0,99933.0,0.00813134]
[1733679140148,0.045007,99928.0,99927.0,0.00064]
[1733679140344,0.045009,99925.0,99917.0,0.17947018]
[1733679140546,0.08988309,99919.0,99918.0,0.00312776]
[1733679140742,0.08988309,99919.0,99916.0,0.21047018]
[1733679140743,0.08988309,99919.0,99917.0,1.5]
[1733679140942,0.08988309,99918.0,99917.0,1.5]
[1733679141543,0.08988309,99919.0,99917.0,1.5]
[1733679141843,0.08992884,99918.0,99917.0,1.6796847]
[1733679142039,0.04501,99922.0,99917.0,1.6796847]
[1733679142244,0.08992911,99918.0,99917.0,1.6806847]
[1733679142541,0.04501,99922.0,99917.0,1.6806847]
[1733679142742,0.15113181,99921.0,99917.0,1.501]
[1733679142941,0.04865103,99920.0,99917.0,1.501]
[1733679145047,0.17986447,99918.0,99917.0,1.501]
[1733679145256,0.17986447,99918.0,99917.0,1.5041279]
[1733679145449,0.04865103,99918.0,99917.0,1.5041279]
[1733679145644,0.01,99923.0,99917.0,1.5491399]
[1733679145856,0.14987623,99919.0,99918.0,0.01563886]
[1733679146153,0.14987623,99919.0,99918.0,0.02064315]
[1733679146349,0.14987623,99920.0,99918.0,0.02064315]
[1733679146652,0.01,99923.0,99919.0,0.44504315]
[1733679146851,0.01,99923.0,99921.0,0.04501]
[1733679147156,0.01,99923.0,99922.0,1.52064315]
[1733679147358,0.01,99928.0,99927.0,0.045008]
[1733679147552,0.01007699,99942.0,99927.0,0.38144315]
[1733679147553,0.01,99933.0,99927.0,0.38144315]
[1733679147746,0.17986447,99938.0,99935.0,0.045004]
[1733679147952,0.17986447,99938.0,99936.0,0.00500361]
[1733679148164,0.17986447,99938.0,99937.0,0.00813087]
[1733679148353,0.17986447,99939.0,99937.0,0.05313387]
[1733679148561,0.17986447,99939.0,99938.0,0.00813087]
[1733679149465,0.002,99939.0,99938.0,0.00813087]
[1733679150060,0.004,99939.0,99938.0,0.00813087]
[1733679152469,0.002,99939.0,99938.0,0.00813087]
[1733679152664,0.004,99939.0,99938.0,0.00813087]
[1733679154768,0.004,99939.0,99938.0,0.00813082]
[1733679155267,0.004,99939.0,99937.0,0.045003]
[1733679155675,0.049002,99939.0,99937.0,0.045003]
[1733679158179,0.047002,99939.0,99937.0,0.045003]
[1733679158482,0.002,99939.0,99937.0,0.045003]
[1733679158675,0.004,99939.0,99937.0,0.045003]
[1733679159381,0.01,99940.0,99939.0,0.045002]
[1733679159576,0.01,99945.0,99944.0,0.045]
[1733679159773,0.01011618,99950.0,99948.0,0.044998]
[1733679160377,0.05511318,99950.0,99948.0,0.044998]
[1733679160969,0.06533542,99950.0,99948.0,0.044998]
[1733679162178,0.07633542,99950.0,99948.0,0.044998]
[1733679162384,0.06611318,99950.0,99949.0,0.00312705]
[1733679162677,0.06611318,99950.0,99949.0,0.00813007]
[1733679162678,0.01111618,99950.0,99949.0,0.00813007]
[1733679162883,0.01111618,99950.0,99949.0,0.02063695]
[1733679163076,0.01111618,99950.0,99949.0,0.12068797]
[1733679163689,0.01111618,99950.0,99949.0,0.12068744]
[1733679163986,0.01111618,99950.0,99949.0,0.14987368]
[1733679164982,0.00711618,99950.0,99949.0,0.14987368]
[1733679165485,0.00711618,99950.0,99949.0,0.19487168]
[1733679165486,0.00611618,99950.0,99949.0,0.19487168]
[1733679166876,0.00611618,99950.0,99949.0,1.69487168]
[1733679167981,0.00611618,99950.0,99949.0,1.67423526]
[1733679168289,0.00611618,99950.0,99949.0,1.69486974]
[1733679169977,0.00611618,99950.0,99949.0,1.68236399]
[1733679170178,0.00611618,99950.0,99949.0,1.66499229]
[1733679170378,0.00611618,99950.0,99949.0,1.65998999]
[1733679170579,0.00611618,99950.0,99949.0,1.67562265]
[1733679170876,0.00611618,99950.0,99949.0,1.67062016]
[1733679171082,0.00611618,99950.0,99949.0,1.65498748]
[1733679171388,0.00611618,99950.0,99949.0,1.67062011]
[1733679172487,0.00611618,99950.0,99949.0,1.67062001]
[1733679173782,0.00611618,99950.0,99949.0,1.67562241]
[1733679175784,0.00611618,99950.0,99949.0,1.67562244]
[1733679178791,0.00311618,99950.0,99949.0,1.97473412]
[1733679178984,0.00011618,99950.0,99949.0,1.97573412]
[1733679179189,0.00111618,99950.0,99949.0,1.97773412]
[1733679179391,0.054997,99955.0,99954.0,0.044995]
[1733679179685,0.044997,99955.0,99954.0,0.05312395]
[1733679181493,0.054993,99960.0,99959.0,0.044993]
[1733679181694,0.044993,99960.0,99959.0,0.04811952]
[1733679182194,0.044993,99960.0,99959.0,1.54811952]
[1733679182796,0.045993,99960.0,99959.0,1.50412652]
[1733679184490,0.046993,99960.0,99959.0,1.50412652]
[1733679184788,0.046993,99960.0,99959.0,1.50312652]
[1733679185093,0.047993,99960.0,99959.0,0.00312652]
[1733679185292,0.044997,99951.0,99950.0,9.99e-05]
[1733679185493,0.405797,99951.0,99950.0,1.50322677]
[1733679185792,0.405797,99951.0,99950.0,9.99e-05]
[1733679185793,0.58566147,99951.0,99950.0,9.99e-05]
[1733679186090,0.58536906,99951.0,99950.0,9.99e-05]
[1733679186298,0.405797,99951.0,99950.0,9.99e-05]
[1733679186686,0.407797,99951.0,99950.0,9.99e-05]
[1733679187598,0.410797,99951.0,99950.0,9.99e-05]
[1733679188485,0.411797,99951.0,99950.0,9.99e-05]
[1733679188896,0.415797,99951.0,99950.0,9.99e-05]
[1733679189290,0.42568178,99951.0,99950.0,9.99e-05]
[1733679190494,0.42668178,99951.0,99950.0,9.99e-05]
[1733679190795,0.42768178,99951.0,99950.0,9.99e-05]
[1733679193093,0.39268478,99951.0,99935.0,1.5]
[1733679193401,0.405804,99936.0,99935.0,1.5]
[1733679195186,0.407804,99936.0,99935.0,1.5]
[1733679195492,0.408804,99936.0,99935.0,1.5]
[1733679197393,0.003,99936.0,99935.0,1.545004]
[1733679198091,0.048004,99936.0,99935.0,1.5]
[1733679198295,0.408804,99936.0,99935.0,1.5]
[1733679198495,0.408804,99936.0,99930.0,0.0001006]
[1733679198496,0.045006,99931.0,99930.0,0.0001006]
[1733679199589,0.045006,99931.0,99930.0,0.0021006]
[1733679199791,0.045006,99931.0,99930.0,0.00522833]
[1733679199989,0.045006,99931.0,99930.0,0.0021006]
[1733679201700,0.046006,99931.0,99930.0,0.0021006]
[1733679203905,0.046006,99931.0,99930.0,1.5021006]
[1733679209308,0.046006,99931.0,99930.0,1.50522849]
[1733679209509,0.046006,99931.0,99930.0,1.5021006]
[1733679210505,0.046006,99931.0,99930.0,0.0021006]
[1733679210697,0.046006,99931.0,99914.0,0.01]
[1733679210698,0.366006,99931.0,99914.0,0.01]
[1733679210902,0.045016,99908.0,99907.0,0.01]
[1733679211100,0.045016,99908.0,99906.0,1.5006]
[1733679211304,0.3608,99907.0,99906.0,1.5]
[1733679211501,0.405817,99907.0,99906.0,1.5]
[1733679211705,0.405817,99907.0,99893.0,0.17896393]
[1733679211919,0.045019,99901.0,99891.0,0.01]
[1733679212106,0.045019,99901.0,99900.0,0.10007773]
[1733679212406,0.045019,99901.0,99900.0,1.60007773]
[1733679212609,0.045019,99901.0,99900.0,0.10007773]
[1733679213707,0.046019,99901.0,99900.0,0.10307773]
[1733679216011,0.05629739,99901.0,99900.0,1.60307773]
[1733679220711,0.046019,99901.0,99900.0,1.60307773]
[1733679221812,0.001,99901.0,99900.0,1.64809773]
[1733679222214,0.001,99901.0,99900.0,1.65122615]
[1733679222915,0.001,99901.0,99900.0,1.65623149]
[1733679223517,0.001,99901.0,99900.0,0.15623149]
[1733679224524,0.01,99906.0,99905.0,0.045018]
[1733679224814,0.045016,99908.0,99907.0,0.045017]
[1733679225015,0.045016,99908.0,99907.0,0.05315076]
[1733679225319,0.045016,99908.0,99907.0,1.55315046]
[1733679226313,0.045016,99908.0,99907.0,1.55415046]
[1733679226923,0.01,99911.0,99910.0,0.045015]
[1733679227111,0.045015,99913.0,99912.0,0.045013]
[1733679227318,0.045015,99913.0,99912.0,0.05314646]
[1733679228214,0.045015,99913.0,99912.0,0.23210176]
[1733679228719,0.046015,99913.0,99912.0,0.05314646]
[1733679228921,0.046015,99913.0,99912.0,0.23310176]
[1733679229615,0.046015,99913.0,99912.0,0.05414646]
[1733679229919,0.046015,99913.0,99912.0,0.04914125]
[1733679230215,0.046015,99913.0,99912.0,0.22809655]
[1733679230415,0.046015,99913.0,99912.0,0.04914125]
[1733679230616,0.046015,99913.0,99912.0,0.22809655]
[1733679231319,0.046015,99913.0,99912.0,0.2249683]
[1733679232119,0.046015,99913.0,99912.0,0.22809624]
[1733679232317,0.046015,99913.0,99912.0,0.04914094]
[1733679232619,0.046015,99913.0,99912.0,0.046013]
[1733679233519,0.046015,99913.0,99912.0,0.04914094]
[1733679234428,0.001,99913.0,99912.0,0.04914094]
[1733679234715,0.001,99913.0,99912.0,0.14922851]
[1733679235417,0.01,99921.0,99920.0,0.045011]
[1733679235610,0.0365,99938.0,99912.0,1.64922851]
[1733679235611,0.01,99926.0,99925.0,0.045009]
[1733679235820,0.045007,99929.0,99928.0,0.045006]
[1733679236911,0.051007,99929.0,99928.0,0.045006]
[1733679237820,0.006,99929.0,99928.0,0.05313768]
[1733679238518,0.3608,99936.0,99935.0,0.045004]
[1733679238716,0.3608,99936.0,99935.0,0.04813162]
[1733679240918,0.3628,99936.0,99935.0,0.04813162]
[1733679242125,0.3638,99936.0,99935.0,0.04813162]
[1733679245028,0.003,99936.0,99935.0,0.045004]
[1733679245429,0.003,99936.0,99935.0,0.0481312]
[1733679245628,0.003,99936.0,99935.0,0.05751248]
[1733679245926,0.003,99936.0,99935.0,0.06063946]
[1733679246231,0.003,99936.0,99935.0,1.56063946]
[1733679246831,0.001,99936.0,99935.0,1.56063946]
[1733679247036,0.003,99936.0,99935.0,1.56063946]
[1733679247426,0.003,99936.0,99935.0,1.660704]
[1733679248628,0.003,99936.0,99935.0,1.66070317]
[1733679249937,0.003,99936.0,99935.0,1.67072431]
[1733679251336,0.0309,99952.0,99951.0,0.044997]
[1733679251532,0.0309,99952.0,99951.0,0.05750471]
[1733679251727,0.0309,99952.0,99951.0,0.06063131]
[1733679252030,0.0309,99952.0,99951.0,0.23928211]
[1733679252230,0.0309,99952.0,99951.0,0.06063131]
[1733679252439,0.0349,99952.0,99951.0,0.06063131]
[1733679252732,0.004,99952.0,99951.0,0.06063131]
[1733679253034,0.0331,99965.0,99964.0,0.044991]
[1733679253439,0.0331,99965.0,99964.0,0.04811743]
[1733679255142,0.15768618,99965.0,99964.0,0.04811743]
[1733679255340,0.0471,99965.0,99964.0,0.044991]
[1733679255634,0.0471,99965.0,99964.0,0.04811742]
[1733679256938,0.014,99965.0,99964.0,0.04811742]
[1733679257633,0.014,99965.0,99964.0,1.54811742]
[1733679258025,0.014,99965.0,99964.0,1.55311949]
[1733679258234,0.014,99965.0,99964.0,1.66566016]
[1733679259031,0.014,99965.0,99964.0,1.66565875]
[1733679259528,0.009,99965.0,99964.0,1.66565875]
[1733679259731,0.012,99965.0,99964.0,1.66565875]
[1733679259935,0.008,99965.0,99964.0,1.66565875]
[1733679261938,0.008,99965.0,99964.0,1.653155]
[1733679262236,0.008,99965.0,99964.0,1.66565961]
[1733679262537,0.008,99965.0,99964.0,1.65753112]
[1733679262746,0.008,99965.0,99964.0,1.66565882]
[1733679263042,0.008,99965.0,99964.0,0.16565882]
[1733679263345,0.008,99965.0,99964.0,1.66565882]
[1733679264937,0.008,99965.0,99964.0,1.6656589]
[1733679265640,0.008,99965.0,99964.0,1.65315429]
[1733679265844,0.008,99965.0,99964.0,1.66565855]
[1733679266343,0.008,99965.0,99964.0,1.84422801]
[1733679266848,0.008,99965.0,99964.0,1.66565855]
[1733679267038,0.008,99965.0,99964.0,1.84418249]
[1733679267240,0.008,99965.0,99964.0,1.66565855]
[1733679267438,0.00012275,99970.0,99964.0,1.66965855]
[1733679267641,0.00012275,99970.0,99969.0,0.044989]
[1733679267842,0.00012275,99970.0,99969.0,0.06562104]
[1733679268243,0.00012275,99970.0,99969.0,0.16064983]
[1733679268540,0.00012275,99970.0,99969.0,0.16065003]
[1733679269041,0.00012275,99970.0,99969.0,0.14814557]
[1733679269446,0.044984,99980.0,99969.0,0.14814557]
[1733679269751,0.044984,99980.0,99976.0,0.044986]
[1733679270250,0.3608,99978.0,99969.0,0.001]
[1733679270438,0.044988,99972.0,99971.0,0.044987]
[1733679270739,0.044988,99972.0,99964.0,1.51068]
[1733679270740,0.044991,99967.0,99966.0,0.04499]
[1733679270942,0.044991,99967.0,99954.0,0.01]
[1733679271146,0.044991,99967.0,99955.0,1.544995]
[1733679271147,0.044995,99956.0,99955.0,1.544995]
[1733679273149,0.044995,99956.0,99955.0,1.546995]
[1733679273943,0.3608,99959.0,99958.0,0.044994]
[1733679274443,0.11958618,99965.0,99958.0,0.10004451]
[1733679274648,0.0302,99966.0,99965.0,0.044991]
[1733679274946,0.0302,99966.0,99965.0,1.544991]
[1733679275450,0.0302,99966.0,99965.0,1.54999312]
[1733679276149,0.0322,99966.0,99965.0,1.54999312]
[1733679276742,0.0342,99966.0,99965.0,1.54999312]
[1733679277351,0.15278618,99966.0,99965.0,1.54999312]
[1733679277555,0.15178618,99966.0,99965.0,1.54999312]
[1733679277948,0.15078618,99966.0,99965.0,1.54999312]
[1733679278146,0.0322,99966.0,99965.0,1.54999312]
[1733679282347,0.07719,99966.0,99965.0,1.73892909]
[1733679282752,0.07719,99966.0,99965.0,1.50312645]
[1733679283549,0.07719,99966.0,99965.0,1.54811745]
[1733679284646,0.07719,99966.0,99965.0,1.50312645]
[1733679285346,0.07719,99966.0,99965.0,1.5]
[1733679286259,0.25643927,99966.0,99965.0,1.5]
[1733679287856,0.25643927,99966.0,99965.0,1.544991]
[1733679287857,0.07719,99966.0,99965.0,1.544991]
[1733679289751,0.002,99966.0,99965.0,1.5481175]
[1733679290254,0.002,99966.0,99965.0,1.55311964]
[1733679293752,0.002,99966.0,99965.0,1.79204873]
[1733679295752,0.002,99966.0,99965.0,1.80223823]
[1733679296062,0.002,99966.0,99965.0,1.80221215]
[1733679296561,0.002,99966.0,99965.0,1.8022343]
[1733679296766,0.002,99966.0,99965.0,1.79410566]
[1733679297061,0.002,99966.0,99965.0,1.79410006]
[1733679297756,0.002,99966.0,99965.0,1.56330909]
[1733679297957,0.002,99966.0,99965.0,1.55311959]
[1733679302362,0.002,99966.0,99965.0,1.50812859]
[1733679302568,0.40779,99966.0,99965.0,0.24721156]
[1733679302754,0.40779,99966.0,99965.0,0.00812859]
[1733679302960,0.51258972,99966.0,99961.0,0.17933533]
[1733679303160,0.51258972,99966.0,99959.0,0.17933533]
[1733679303161,0.044993,99960.0,99959.0,0.17933533]
[1733679303360,0.14978972,99963.0,99957.0,0.17935962]
[1733679303560,0.3608,99958.0,99957.0,0.17935962]
[1733679303866,0.3608,99958.0,99953.0,0.044996]
[1733679303867,0.044995,99956.0,99955.0,0.17935962]
[1733679304057,0.044995,99954.0,99953.0,0.22435562]
[1733679304466,0.044995,99954.0,99953.0,0.044996]
[1733679305361,0.044996,99953.0,99952.0,0.17933477]
[1733679305567,0.044996,99953.0,99951.0,1.5006]
[1733679305568,0.044996,99952.0,99951.0,1.67993477]
[1733679305767,0.044996,99952.0,99951.0,1.5]
[1733679307060,0.05516046,99952.0,99951.0,1.5]
[1733679307367,0.174977,99952.0,99951.0,1.501]
[1733679307568,0.05516046,99952.0,99951.0,1.501]
[1733679307770,0.17497714,99952.0,99951.0,1.501]
[1733679308158,0.05516046,99952.0,99951.0,1.501]
[1733679308768,0.23440973,99952.0,99951.0,0.001]
[1733679308970,0.05516046,99952.0,99951.0,0.001]
[1733679309172,0.045001,99941.0,99940.0,0.01]
[1733679309481,0.045006,99931.0,99928.0,0.01]
[1733679309673,0.405806,99931.0,99930.0,1.50007773]
[1733679309973,0.55547546,99931.0,99930.0,1.50007773]
[1733679310473,0.405806,99931.0,99930.0,1.50007773]
[1733679311471,0.405806,99931.0,99930.0,7.773e-05]
[1733679311768,0.41572806,99931.0,99930.0,7.773e-05]
[1733679312163,0.41572806,99931.0,99930.0,0.00307773]
[1733679312359,0.41572806,99931.0,99930.0,0.00707773]
[1733679312360,0.41672806,99931.0,99930.0,0.00707773]
[1733679313566,0.56630495,99931.0,99930.0,0.00707773]
[1733679313770,0.045011,99919.0,99918.0,0.01]
[1733679314072,0.405811,99919.0,99915.0,1.5]
[1733679314270,0.0316,99918.0,99915.0,1.5]
[1733679315467,0.045013,99916.0,99915.0,1.5]
[1733679315670,0.045013,99916.0,99915.0,1.503]
[1733679316868,0.046013,99916.0,99915.0,1.503]
[1733679317174,0.407813,99916.0,99915.0,1.5]
[1733679317966,0.045015,99911.0,99910.0,9.164e-05]
[1733679318371,0.045015,99911.0,99910.0,1.50009164]
[1733679319165,0.046015,99911.0,99910.0,1.50009164]
[1733679320077,0.046015,99911.0,99910.0,9.164e-05]
[1733679320576,0.046015,99911.0,99910.0,1.50009164]
[1733679320979,0.046015,99911.0,99910.0,1.50109164]
[1733679326074,0.046015,99911.0,99910.0,0.00109164]
[1733679333779,0.046015,99911.0,99910.0,0.00422016]
[1733679335080,0.046015,99911.0,99910.0,0.00109164]
[1733679335481,0.046015,99911.0,99900.0,0.11]